Department,Entity, Transaction Date, Expense Type, Expense Area, Supplier Name,Transaction number, Amount, Invoice Description
DFID,CSC,01/11/2017,Bank Charges,Award Costs,Mastercard Prepaid Management Services Ltd,PIN029959,26.84,
DFID,CSC,01/11/2017,Scholar Allowances,Award Costs,Scholar,PIN029959,414,
DFID,CSC,01/11/2017,Scholar Stipend,Award Costs,Scholar,PIN029959,2269.96,
DFID,CSC,02/11/2017,Scholar Allowances,Award Costs,Scholar,PIN029701,37.62,
DFID,CSC,02/11/2017,Scholar Allowances,Award Costs,Scholar,PIN029701,37.62,
DFID,CSC,02/11/2017,Scholar Stipend,Award Costs,Scholar,PIN029701,1685.42,
DFID,CSC,02/11/2017,Scholar Stipend,Award Costs,Scholar,PIN029702,3195,
DFID,CSC,02/11/2017,Bank Charges,Award Costs,Mastercard Prepaid Management Services Ltd,PIN029960,92.68,
DFID,CSC,02/11/2017,Scholar Allowances,Award Costs,Scholar,PIN029960,414,
DFID,CSC,02/11/2017,Scholar Stipend,Award Costs,Scholar,PIN029960,2269.96,
DFID,CSC,02/11/2017,Scholar Allowances,Award Costs,Scholar,PIN029960,414,
DFID,CSC,02/11/2017,Scholar Stipend,Award Costs,Scholar,PIN029960,2079.71,
DFID,CSC,02/11/2017,Visa Costs,Award Costs,Scholar,PIN029960,235,
DFID,CSC,02/11/2017,Scholar Allowances,Award Costs,Scholar,PIN029960,447.92,
DFID,CSC,02/11/2017,Scholar Stipend,Award Costs,Scholar,PIN029960,1361.61,
DFID,CSC,02/11/2017,Visa Costs,Award Costs,Scholar,PIN029960,235,
DFID,CSC,02/11/2017,Scholar Allowances,Award Costs,Scholar,PIN029960,447.92,
DFID,CSC,02/11/2017,Scholar Stipend,Award Costs,Scholar,PIN029960,1361.61,
DFID,CSC,03/11/2017,Scholar Travel,Award Costs,Cranfield University,PIN029649,2676.52,
DFID,CSC,03/11/2017,Tuition Fee,Award Costs,The University of Warwick,PIN029650,18000,
DFID,CSC,03/11/2017,Tuition Fee,Award Costs,The University of Warwick,PIN029651,12984,
DFID,CSC,03/11/2017,Award Support Grant,Award Costs,University of Glasgow,PIN029652,5000,
DFID,CSC,03/11/2017,Tuition Fee,Award Costs,University of Newcastle upon Tyne,PIN029653,15064,
DFID,CSC,03/11/2017,Tuition Fee,Award Costs,University of Liverpool,PIN029654,18000,
DFID,CSC,03/11/2017,Tuition Fee,Award Costs,University of Leicester,PIN029655,1507.5,
DFID,CSC,03/11/2017,Scholar Allowances,Award Costs,University of Leicester,PIN029656,450,
DFID,CSC,03/11/2017,Scholar Allowances,Award Costs,University of Leicester,PIN029656,400,
DFID,CSC,03/11/2017,Scholar Allowances,Award Costs,University of Leicester,PIN029656,500,
DFID,CSC,03/11/2017,Scholar Travel,Award Costs,University of Leicester,PIN029656,864.67,
DFID,CSC,03/11/2017,Tuition Fee,Award Costs,The University of Birmingham,PIN029657,14328,
DFID,CSC,03/11/2017,Tuition Fee,Award Costs,The University of Birmingham,PIN029658,10944,
DFID,CSC,03/11/2017,Tuition Fee,Award Costs,The University of Birmingham,PIN029659,10944,
DFID,CSC,03/11/2017,Tuition Fee,Award Costs,Bangor University,PIN029660,42900,Tuition fees for 3 scholars
DFID,CSC,03/11/2017,Tuition Fee,Award Costs,Bangor University,PIN029660,11440,
DFID,CSC,03/11/2017,Tuition Fee,Award Costs,Bangor University,PIN029661,28620,Tuition fees for 6 scholars
DFID,CSC,03/11/2017,Tuition Fee,Award Costs,Bangor University,PIN029662,37911,Tuition fees for 8 scholars
DFID,CSC,03/11/2017,Tuition Fee,Award Costs,The University of Edinburgh,PIN029663,11680,
DFID,CSC,03/11/2017,Award Support Grant,Award Costs,The University of Edinburgh,PIN029663,1000,
DFID,CSC,03/11/2017,Tuition Fee,Award Costs,The University of Edinburgh,PIN029664,15280,
DFID,CSC,03/11/2017,Award Support Grant,Award Costs,The University of Edinburgh,PIN029664,2500,
DFID,CSC,03/11/2017,Award Support Grant,Award Costs,The University of Salford,PIN029665,800,
DFID,CSC,03/11/2017,Award Support Grant,Award Costs,The University of Salford,PIN029665,3000,
DFID,CSC,03/11/2017,Award Support Grant,Award Costs,The University of Salford,PIN029666,5000,
DFID,CSC,03/11/2017,Tuition Fee,Award Costs,The University of Salford,PIN029666,10620,
DFID,CSC,03/11/2017,Tuition Fee,Award Costs,University of Bath,PIN029667,17000,
DFID,CSC,03/11/2017,Award Support Grant,Award Costs,University of Surrey,PIN029668,1100,
DFID,CSC,03/11/2017,Tuition Fee,Award Costs,University of Surrey,PIN029668,14400,
DFID,CSC,03/11/2017,Tuition Fee,Award Costs,University of Surrey,PIN029669,11600,
DFID,CSC,03/11/2017,Tuition Fee,Award Costs,The University of Leeds,PIN029670,14000,
DFID,CSC,03/11/2017,Tuition Fee,Award Costs,The University of Leeds,PIN029671,15800,
DFID,CSC,03/11/2017,Tuition Fee,Award Costs,University of the West of England Bristol,PIN029672,10100,
DFID,CSC,03/11/2017,Tuition Fee,Award Costs,University of Exeter,PIN029673,19200,
DFID,CSC,03/11/2017,Tuition Fee,Award Costs,University of Exeter,PIN029674,18000,
DFID,CSC,03/11/2017,Tuition Fee,Award Costs,University of Exeter,PIN029675,15240,
DFID,CSC,03/11/2017,Tuition Fee,Award Costs,University of Exeter,PIN029676,15240,
DFID,CSC,03/11/2017,Tuition Fee,Award Costs,University of Exeter,PIN029677,12360,
DFID,CSC,03/11/2017,Tuition Fee,Award Costs,University of Exeter,PIN029678,13000,
DFID,CSC,03/11/2017,Tuition Fee,Award Costs,The University of York,PIN029679,4735,
DFID,CSC,03/11/2017,Tuition Fee,Award Costs,The University of York,PIN029680,4735,
DFID,CSC,03/11/2017,Tuition Fee,Award Costs,The University of York,PIN029681,4735,
DFID,CSC,03/11/2017,Tuition Fee,Award Costs,The University of York,PIN029682,4735,
DFID,CSC,03/11/2017,Tuition Fee,Award Costs,The University of York,PIN029683,4735,
DFID,CSC,03/11/2017,Tuition Fee,Award Costs,The University of York,PIN029684,4655,
DFID,CSC,03/11/2017,Tuition Fee,Award Costs,The University of York,PIN029685,4655,
DFID,CSC,03/11/2017,Tuition Fee,Award Costs,The University of York,PIN029686,4655,
DFID,CSC,03/11/2017,Tuition Fee,Award Costs,The University of York,PIN029687,4655,
DFID,CSC,03/11/2017,Tuition Fee,Award Costs,The University of York,PIN029688,4655,
DFID,CSC,03/11/2017,Tuition Fee,Award Costs,The University of York,PIN029689,4655,
DFID,CSC,03/11/2017,Tuition Fee,Award Costs,The University of York,PIN029690,4735,
DFID,CSC,03/11/2017,Tuition Fee,Award Costs,The University of York,PIN029691,4735,
DFID,CSC,03/11/2017,Tuition Fee,Award Costs,The University of York,PIN029692,4735,
DFID,CSC,03/11/2017,Tuition Fee,Award Costs,The University of York,PIN029693,4735,
DFID,CSC,03/11/2017,Tuition Fee,Award Costs,The University of York,PIN029694,4735,
DFID,CSC,03/11/2017,Tuition Fee,Award Costs,The University of York,PIN029695,4735,
DFID,CSC,03/11/2017,Tuition Fee,Award Costs,The University of York,PIN029696,4735,
DFID,CSC,03/11/2017,Tuition Fee,Award Costs,The University of York,PIN029697,4735,
DFID,CSC,03/11/2017,Tuition Fee,Award Costs,The University of York,PIN029698,4735,
DFID,CSC,03/11/2017,Tuition Fee,Award Costs,University of Bath,PIN029699,3170,
DFID,CSC,03/11/2017,Scholar Allowances,Award Costs,Scholar,PIN029703,1354,
DFID,CSC,03/11/2017,Scholar Allowances,Award Costs,Scholar,PIN029703,1354,
DFID,CSC,03/11/2017,Scholar Stipend,Award Costs,Scholar,PIN029703,3918,
DFID,CSC,06/11/2017,Bank Charges,Award Costs,Mastercard Prepaid Management Services Ltd,PIN029957,24.94,
DFID,CSC,06/11/2017,Scholar Allowances,Award Costs,Scholar,PIN029957,414,
DFID,CSC,06/11/2017,Scholar Stipend,Award Costs,Scholar,PIN029957,2079.71,
DFID,CSC,07/11/2017,Scholar Allowances,Award Costs,Scholar,PIN029704,457,
DFID,CSC,07/11/2017,Scholar Stipend,Award Costs,Scholar,PIN029704,532.5,
DFID,CSC,07/11/2017,Scholar Allowances,Award Costs,Scholar,PIN029705,218.18,
DFID,CSC,07/11/2017,Scholar Allowances,Award Costs,Scholar,PIN029705,218.18,
DFID,CSC,07/11/2017,Scholar Stipend,Award Costs,Scholar,PIN029705,1014.7,
DFID,CSC,07/11/2017,Scholar Stipend,Award Costs,Scholar,PIN029706,559.84,
DFID,CSC,07/11/2017,Scholar Allowances,Award Costs,Scholar,PIN029707,848.91,
DFID,CSC,07/11/2017,Scholar Allowances,Award Costs,Scholar,PIN029707,848.91,
DFID,CSC,07/11/2017,Scholar Allowances,Award Costs,Scholar,PIN029708,646.09,
DFID,CSC,08/11/2017,Bank Charges,Award Costs,Mastercard Prepaid Management Services Ltd,PIN029958,257.76,
DFID,CSC,08/11/2017,Visa Costs,Award Costs,Scholar,PIN029958,235,
DFID,CSC,08/11/2017,Visa Costs,Award Costs,Scholar,PIN029958,235,
DFID,CSC,08/11/2017,Scholar Allowances,Award Costs,Scholar,PIN029958,783.86,
DFID,CSC,08/11/2017,Scholar Stipend,Award Costs,Scholar,PIN029958,3052.78,
DFID,CSC,08/11/2017,Visa Costs,Award Costs,Scholar,PIN029958,235,
DFID,CSC,08/11/2017,Scholar Allowances,Award Costs,Scholar,PIN029958,783.86,
DFID,CSC,08/11/2017,Scholar Stipend,Award Costs,Scholar,PIN029958,3052.78,
DFID,CSC,08/11/2017,Visa Costs,Award Costs,Scholar,PIN029958,235,
DFID,CSC,08/11/2017,Scholar Allowances,Award Costs,Scholar,PIN029958,783.86,
DFID,CSC,08/11/2017,Scholar Stipend,Award Costs,Scholar,PIN029958,3052.78,
DFID,CSC,08/11/2017,Visa Costs,Award Costs,Scholar,PIN029958,235,
DFID,CSC,08/11/2017,Scholar Allowances,Award Costs,Scholar,PIN029958,447.92,
DFID,CSC,08/11/2017,Scholar Stipend,Award Costs,Scholar,PIN029958,1688.77,
DFID,CSC,08/11/2017,Visa Costs,Award Costs,Scholar,PIN029958,235,
DFID,CSC,08/11/2017,Scholar Allowances,Award Costs,Scholar,PIN029958,447.92,
DFID,CSC,08/11/2017,Scholar Stipend,Award Costs,Scholar,PIN029958,1688.77,
DFID,CSC,08/11/2017,Visa Costs,Award Costs,Scholar,PIN029958,235,
DFID,CSC,08/11/2017,Scholar Allowances,Award Costs,Scholar,PIN029958,447.92,
DFID,CSC,08/11/2017,Scholar Stipend,Award Costs,Scholar,PIN029958,1688.77,
DFID,CSC,08/11/2017,Visa Costs,Award Costs,Scholar,PIN029958,235,
DFID,CSC,08/11/2017,Scholar Allowances,Award Costs,Scholar,PIN029958,447.92,
DFID,CSC,08/11/2017,Scholar Stipend,Award Costs,Scholar,PIN029958,1688.77,
DFID,CSC,08/11/2017,Scholar Stipend,Award Costs,Scholar,PIN029958,3052.78,
DFID,CSC,08/11/2017,Scholar Allowances,Award Costs,Scholar,PIN029958,783.86,
DFID,CSC,09/11/2017,Scholar Stipend,Award Costs,Scholar,PIN029786,3144.7,
DFID,CSC,10/11/2017,Scholar Engagement,Programme Costs,Safestay Limited,PIN029709,968.5,
DFID,CSC,10/11/2017,Scholar Engagement,Programme Costs,Safestay Limited,PIN029709,4842.5,
DFID,CSC,10/11/2017,Alumni Engagement,Programme Costs,TFW Printers,PIN029711,1040,
DFID,CSC,10/11/2017,Engagement,Programme Costs,DigitalMyWay,PIN029712,900,
DFID,CSC,10/11/2017,Scholar Advances,Award Costs,Scholar,PIN029713,700,
DFID,CSC,10/11/2017,Scholar Advances,Award Costs,Scholar,PIN029714,650,
DFID,CSC,10/11/2017,Scholar Advances,Award Costs,Scholar,PIN029715,579,
DFID,CSC,10/11/2017,Scholar Allowances,Award Costs,Scholar,PIN029716,600,
DFID,CSC,10/11/2017,Scholar Allowances,Award Costs,Scholar,PIN029719,533.05,
DFID,CSC,10/11/2017,Award Support Grant,Award Costs,University of Oxford,PIN029720,7500,
DFID,CSC,10/11/2017,Tuition Fee,Award Costs,Linacre College Oxford,PIN029721,20906,
DFID,CSC,10/11/2017,Tuition Fee,Award Costs,Linacre College Oxford,PIN029722,-3022,
DFID,CSC,10/11/2017,Tuition Fee,Award Costs,Green Templeton College,PIN029723,22500,
DFE,CSC,10/11/2017,Tuition Fee,Award Costs,Green Templeton College,PIN029724,15755,
DFE,CSC,10/11/2017,Tuition Fee,Award Costs,Green Templeton College,PIN029724,3021,
DFID,CSC,10/11/2017,Tuition Fee,Award Costs,St John's College Oxford,PIN029725,3021,
DFID,CSC,10/11/2017,Tuition Fee,Award Costs,St John's College Oxford,PIN029725,15468,
DFID,CSC,10/11/2017,Award Support Grant,Award Costs,The Cambridge Commonwealth Trust,PIN029727,13940,
DFID,CSC,10/11/2017,Tuition Fee,Award Costs,The Cambridge Commonwealth Trust,PIN029728,18000,
DFID,CSC,10/11/2017,Tuition Fee,Award Costs,The Cambridge Commonwealth Trust,PIN029728,16951.2,
DFID,CSC,10/11/2017,Tuition Fee,Award Costs,The Cambridge Commonwealth Trust,PIN029728,16951.2,
DFID,CSC,10/11/2017,Tuition Fee,Award Costs,The Cambridge Commonwealth Trust,PIN029728,18000,
DFID,CSC,10/11/2017,Tuition Fee,Award Costs,The Cambridge Commonwealth Trust,PIN029728,18000,
DFID,CSC,10/11/2017,Tuition Fee,Award Costs,The Cambridge Commonwealth Trust,PIN029728,19111.2,
DFID,CSC,10/11/2017,Tuition Fee,Award Costs,The Cambridge Commonwealth Trust,PIN029728,19111.2,
DFID,CSC,10/11/2017,Tuition Fee,Award Costs,The Cambridge Commonwealth Trust,PIN029728,15213.6,
DFID,CSC,10/11/2017,Tuition Fee,Award Costs,The Cambridge Commonwealth Trust,PIN029728,19111.2,
DFID,CSC,10/11/2017,Tuition Fee,Award Costs,The Cambridge Commonwealth Trust,PIN029728,19111.2,
DFID,CSC,10/11/2017,Tuition Fee,Award Costs,University of Bradford,PIN029729,11920,
DFID,CSC,10/11/2017,Tuition Fee,Award Costs,University of Bradford,PIN029730,11920,
DFID,CSC,10/11/2017,Scholar Allowances,Award Costs,University of Stirling,PIN029731,414,
DFID,CSC,10/11/2017,Visa Costs,Award Costs,University of Stirling,PIN029731,100.87,
DFID,CSC,10/11/2017,Scholar Travel,Award Costs,University of Stirling,PIN029731,62.4,
DFID,CSC,10/11/2017,Scholar Travel,Award Costs,University of Stirling,PIN029731,910.52,
DFID,CSC,10/11/2017,Tuition Fee,Award Costs,University of Bristol,PIN029734,18800,
DFID,CSC,10/11/2017,Tuition Fee,Award Costs,University of Bristol,PIN029735,18900,
DFID,CSC,10/11/2017,Tuition Fee,Award Costs,University of Bristol,PIN029736,18800,
DFID,CSC,10/11/2017,Tuition Fee,Award Costs,University of Bristol,PIN029737,15700,
DFID,CSC,10/11/2017,Tuition Fee,Award Costs,Manchester Metropolitan University,PIN029738,9760,
DFID,CSC,10/11/2017,Tuition Fee,Award Costs,University of Bath,PIN029739,12160,
DFID,CSC,10/11/2017,Tuition Fee,Award Costs,Lancaster University,PIN029740,12788,
DFID,CSC,10/11/2017,Tuition Fee,Award Costs,Lancaster University,PIN029741,10872,
DFID,CSC,10/11/2017,Tuition Fee,Award Costs,Lancaster University,PIN029742,12788,
DFID,CSC,10/11/2017,Tuition Fee,Award Costs,Kings College London,PIN029743,18000,
DFID,CSC,10/11/2017,Tuition Fee,Award Costs,Kings College London,PIN029744,18000,
DFID,CSC,10/11/2017,Tuition Fee,Award Costs,Loughborough University,PIN029745,14934.4,
DFID,CSC,10/11/2017,Tuition Fee,Award Costs,The University of Nottingham,PIN029746,18000,
DFID,CSC,10/11/2017,Tuition Fee,Award Costs,The University of Nottingham,PIN029747,12708,
DFID,CSC,10/11/2017,Tuition Fee,Award Costs,The University of Nottingham,PIN029748,15885,
DFID,CSC,10/11/2017,Tuition Fee,Award Costs,The University of Nottingham,PIN029749,22365,
DFID,CSC,10/11/2017,Tuition Fee,Award Costs,The University of Nottingham,PIN029750,22365,
DFID,CSC,10/11/2017,Tuition Fee,Award Costs,The University of Nottingham,PIN029751,22365,
DFID,CSC,10/11/2017,Tuition Fee,Award Costs,The University of Nottingham,PIN029752,22365,
DFID,CSC,10/11/2017,Tuition Fee,Award Costs,The University of Nottingham,PIN029753,20250,
DFID,CSC,10/11/2017,Tuition Fee,Award Costs,The University of Nottingham,PIN029754,15885,
DFID,CSC,10/11/2017,Tuition Fee,Award Costs,The University of Nottingham,PIN029755,11312,
DFID,CSC,10/11/2017,Tuition Fee,Award Costs,The University of Nottingham,PIN029756,15296,
DFID,CSC,10/11/2017,Tuition Fee,Award Costs,The University of Nottingham,PIN029757,11880,
DFID,CSC,10/11/2017,Tuition Fee,Award Costs,The University of Nottingham,PIN029758,18184,
DFID,CSC,10/11/2017,Tuition Fee,Award Costs,The University of Nottingham,PIN029759,18000,
DFID,CSC,10/11/2017,Tuition Fee,Award Costs,The University of Nottingham,PIN029760,18000,
DFID,CSC,10/11/2017,Tuition Fee,Award Costs,The University of Nottingham,PIN029761,14568,
DFID,CSC,10/11/2017,Tuition Fee,Award Costs,The University of Nottingham,PIN029762,14568,
DFID,CSC,10/11/2017,Tuition Fee,Award Costs,The University of Nottingham,PIN029763,11880,
DFID,CSC,10/11/2017,Tuition Fee,Award Costs,The University of Nottingham,PIN029764,20250,
DFID,CSC,10/11/2017,Tuition Fee,Award Costs,Heriot Watt University,PIN029765,17570,
DFID,CSC,10/11/2017,Scholar Travel,Award Costs,Diversity Travel,PIN029766,308.47,
DFID,CSC,10/11/2017,Scholar Travel,Award Costs,Diversity Travel,PIN029766,660,
DFID,CSC,10/11/2017,Scholar Travel,Award Costs,Diversity Travel,PIN029766,373.4,
DFID,CSC,10/11/2017,Scholar Travel,Award Costs,Diversity Travel,PIN029766,383,
DFID,CSC,10/11/2017,Scholar Travel,Award Costs,Diversity Travel,PIN029766,831.81,
DFID,CSC,10/11/2017,Scholar Travel,Award Costs,Diversity Travel,PIN029766,476.8,
DFID,CSC,10/11/2017,Scholar Travel,Award Costs,Diversity Travel,PIN029766,549.3,
DFID,CSC,10/11/2017,Scholar Travel,Award Costs,Diversity Travel,PIN029766,525.6,
DFID,CSC,10/11/2017,Scholar Travel,Award Costs,Diversity Travel,PIN029766,660,
DFID,CSC,10/11/2017,Scholar Travel,Award Costs,Diversity Travel,PIN029766,15.3,
DFID,CSC,10/11/2017,Scholar Travel,Award Costs,Diversity Travel,PIN029766,591.4,
DFID,CSC,10/11/2017,Scholar Travel,Award Costs,Diversity Travel,PIN029766,442,
DFID,CSC,10/11/2017,Scholar Travel,Award Costs,Diversity Travel,PIN029766,699.6,
DFID,CSC,10/11/2017,Scholar Travel,Award Costs,Diversity Travel,PIN029766,540.9,
DFID,CSC,10/11/2017,Scholar Travel,Award Costs,Diversity Travel,PIN029766,698.3,
DFID,CSC,10/11/2017,Scholar Travel,Award Costs,Diversity Travel,PIN029766,399.3,
DFID,CSC,10/11/2017,Scholar Travel,Award Costs,Diversity Travel,PIN029766,586.7,
DFID,CSC,10/11/2017,Scholar Travel,Award Costs,Diversity Travel,PIN029766,776.8,
DFID,CSC,10/11/2017,Scholar Travel,Award Costs,Diversity Travel,PIN029766,459.77,
DFID,CSC,10/11/2017,Scholar Travel,Award Costs,Diversity Travel,PIN029766,24.9,
DFID,CSC,10/11/2017,Scholar Travel,Award Costs,Diversity Travel,PIN029766,516.3,
DFID,CSC,10/11/2017,Scholar Travel,Award Costs,Diversity Travel,PIN029766,300.3,
DFID,CSC,10/11/2017,Scholar Travel,Award Costs,Diversity Travel,PIN029766,632,
DFID,CSC,10/11/2017,Scholar Travel,Award Costs,Diversity Travel,PIN029766,292.4,
DFID,CSC,10/11/2017,Scholar Travel,Award Costs,Diversity Travel,PIN029766,486.2,
DFID,CSC,10/11/2017,Scholar Travel,Award Costs,Diversity Travel,PIN029766,1261.4,
DFID,CSC,10/11/2017,Scholar Travel,Award Costs,Diversity Travel,PIN029766,436,
DFID,CSC,10/11/2017,Scholar Travel,Award Costs,Diversity Travel,PIN029766,544.7,
DFID,CSC,10/11/2017,Scholar Travel,Award Costs,Diversity Travel,PIN029766,755,
DFID,CSC,10/11/2017,Scholar Travel,Award Costs,Diversity Travel,PIN029766,657,
DFID,CSC,10/11/2017,Scholar Travel,Award Costs,Diversity Travel,PIN029766,507.7,
DFID,CSC,10/11/2017,Scholar Travel,Award Costs,Diversity Travel,PIN029766,535.1,
DFID,CSC,10/11/2017,Scholar Travel,Award Costs,Diversity Travel,PIN029766,859.4,
DFID,CSC,10/11/2017,Scholar Travel,Award Costs,Diversity Travel,PIN029766,48.1,
DFID,CSC,10/11/2017,Scholar Travel,Award Costs,Diversity Travel,PIN029766,524.6,
DFID,CSC,10/11/2017,Scholar Travel,Award Costs,Diversity Travel,PIN029766,654.7,
DFID,CSC,10/11/2017,Scholar Travel,Award Costs,Diversity Travel,PIN029766,430.8,
DFID,CSC,10/11/2017,Scholar Travel,Award Costs,Diversity Travel,PIN029766,884.82,
DFID,CSC,10/11/2017,Scholar Travel,Award Costs,Diversity Travel,PIN029766,347.6,
DFID,CSC,10/11/2017,Scholar Travel,Award Costs,Diversity Travel,PIN029766,600,
DFID,CSC,10/11/2017,Scholar Travel,Award Costs,Diversity Travel,PIN029766,502.7,
DFID,CSC,10/11/2017,Scholar Travel,Award Costs,Diversity Travel,PIN029766,606.9,
DFID,CSC,10/11/2017,Scholar Travel,Award Costs,Diversity Travel,PIN029766,1173.94,
DFID,CSC,10/11/2017,Scholar Travel,Award Costs,Diversity Travel,PIN029766,406.1,
DFID,CSC,10/11/2017,Scholar Travel,Award Costs,Diversity Travel,PIN029766,620,
DFID,CSC,10/11/2017,Scholar Travel,Award Costs,Diversity Travel,PIN029766,700,
DFID,CSC,10/11/2017,Scholar Travel,Award Costs,Diversity Travel,PIN029766,683.8,
DFID,CSC,10/11/2017,Scholar Travel,Award Costs,Diversity Travel,PIN029766,375.72,
DFID,CSC,10/11/2017,Scholar Travel,Award Costs,Diversity Travel,PIN029766,849.92,
DFID,CSC,10/11/2017,Scholar Travel,Award Costs,Diversity Travel,PIN029766,469.6,
DFID,CSC,10/11/2017,Scholar Travel,Award Costs,Diversity Travel,PIN029766,495.7,
DFID,CSC,10/11/2017,Scholar Travel,Award Costs,Diversity Travel,PIN029766,610,
DFID,CSC,10/11/2017,Scholar Travel,Award Costs,Diversity Travel,PIN029766,483.2,
DFID,CSC,10/11/2017,Scholar Travel,Award Costs,Diversity Travel,PIN029766,348.7,
DFID,CSC,10/11/2017,Scholar Travel,Award Costs,Diversity Travel,PIN029766,316.3,
DFID,CSC,10/11/2017,Scholar Travel,Award Costs,Diversity Travel,PIN029767,804.57,
DFID,CSC,10/11/2017,Scholar Travel,Award Costs,Diversity Travel,PIN029767,868.97,
DFID,CSC,10/11/2017,Scholar Travel,Award Costs,Diversity Travel,PIN029767,716.8,
DFID,CSC,10/11/2017,Scholar Travel,Award Costs,Diversity Travel,PIN029767,537.3,
DFID,CSC,10/11/2017,Scholar Travel,Award Costs,Diversity Travel,PIN029767,352.2,
DFID,CSC,10/11/2017,Scholar Travel,Award Costs,Diversity Travel,PIN029767,460.32,
DFID,CSC,10/11/2017,Scholar Travel,Award Costs,Diversity Travel,PIN029767,723.37,
DFID,CSC,10/11/2017,Scholar Travel,Award Costs,Diversity Travel,PIN029767,510.62,
DFID,CSC,10/11/2017,Scholar Travel,Award Costs,Diversity Travel,PIN029767,1328.04,
DFID,CSC,10/11/2017,Scholar Travel,Award Costs,Diversity Travel,PIN029767,672.9,
DFID,CSC,10/11/2017,Scholar Travel,Award Costs,Diversity Travel,PIN029767,699.88,
DFID,CSC,10/11/2017,Scholar Travel,Award Costs,Diversity Travel,PIN029767,678.6,
DFID,CSC,10/11/2017,Scholar Travel,Award Costs,Diversity Travel,PIN029767,355.2,
DFID,CSC,10/11/2017,Scholar Travel,Award Costs,Diversity Travel,PIN029767,516,
DFID,CSC,10/11/2017,Scholar Travel,Award Costs,Diversity Travel,PIN029767,1317.34,
DFID,CSC,10/11/2017,Scholar Travel,Award Costs,Diversity Travel,PIN029767,1329.34,
DFID,CSC,10/11/2017,Scholar Travel,Award Costs,Diversity Travel,PIN029767,801.09,
DFID,CSC,10/11/2017,Scholar Travel,Award Costs,Diversity Travel,PIN029767,33.4,
DFID,CSC,10/11/2017,Scholar Travel,Award Costs,Diversity Travel,PIN029767,575.3,
DFID,CSC,10/11/2017,Scholar Travel,Award Costs,Diversity Travel,PIN029767,522.9,
DFID,CSC,10/11/2017,Scholar Travel,Award Costs,Diversity Travel,PIN029767,596.37,
DFID,CSC,10/11/2017,Scholar Travel,Award Costs,Diversity Travel,PIN029767,743.39,
DFID,CSC,10/11/2017,Scholar Travel,Award Costs,Diversity Travel,PIN029767,408.6,
DFID,CSC,10/11/2017,Scholar Travel,Award Costs,Diversity Travel,PIN029767,572.3,
DFID,CSC,10/11/2017,Scholar Travel,Award Costs,Diversity Travel,PIN029767,539.47,
DFID,CSC,10/11/2017,Scholar Travel,Award Costs,Diversity Travel,PIN029767,654.72,
DFID,CSC,10/11/2017,Fieldwork Airfare,Award Costs,Diversity Travel,PIN029767,432.8,
DFID,CSC,10/11/2017,Scholar Travel,Award Costs,Diversity Travel,PIN029767,522.32,
DFID,CSC,10/11/2017,Scholar Travel,Award Costs,Diversity Travel,PIN029767,846.74,
DFID,CSC,10/11/2017,Scholar Travel,Award Costs,Diversity Travel,PIN029767,445.8,
DFID,CSC,10/11/2017,Scholar Travel,Award Costs,Diversity Travel,PIN029767,16,
DFID,CSC,10/11/2017,Scholar Travel,Award Costs,Diversity Travel,PIN029767,42,
DFID,CSC,10/11/2017,Scholar Travel,Award Costs,Diversity Travel,PIN029767,26,
DFID,CSC,10/11/2017,Scholar Travel,Award Costs,Diversity Travel,PIN029767,21.1,
DFID,CSC,10/11/2017,Scholar Travel,Award Costs,Diversity Travel,PIN029767,120.7,
DFID,CSC,10/11/2017,Scholar Travel,Award Costs,Diversity Travel,PIN029767,1144.4,
DFID,CSC,10/11/2017,Scholar Travel,Award Costs,Diversity Travel,PIN029767,353.2,
DFID,CSC,10/11/2017,Scholar Travel,Award Costs,Diversity Travel,PIN029767,708.97,
DFID,CSC,10/11/2017,Scholar Travel,Award Costs,Diversity Travel,PIN029767,886.41,
DFID,CSC,10/11/2017,Scholar Travel,Award Costs,Diversity Travel,PIN029767,637.4,
DFID,CSC,10/11/2017,Scholar Travel,Award Costs,Diversity Travel,PIN029767,596.6,
DFID,CSC,10/11/2017,Fieldwork Airfare,Award Costs,Diversity Travel,PIN029767,971.67,
DFID,CSC,10/11/2017,Scholar Travel,Award Costs,Diversity Travel,PIN029767,884.69,
DFID,CSC,10/11/2017,Scholar Travel,Award Costs,Diversity Travel,PIN029767,18,
DFID,CSC,10/11/2017,Scholar Travel,Award Costs,Diversity Travel,PIN029767,765.2,
DFID,CSC,10/11/2017,Scholar Travel,Award Costs,Diversity Travel,PIN029767,605.52,
DFID,CSC,10/11/2017,Scholar Travel,Award Costs,Diversity Travel,PIN029767,551.3,
DFID,CSC,10/11/2017,Scholar Travel,Award Costs,Diversity Travel,PIN029767,638.9,
DFID,CSC,10/11/2017,Scholar Travel,Award Costs,Diversity Travel,PIN029767,507.6,
DFID,CSC,10/11/2017,Scholar Travel,Award Costs,Diversity Travel,PIN029767,500.1,
DFID,CSC,10/11/2017,Scholar Travel,Award Costs,Diversity Travel,PIN029767,558,
DFID,CSC,10/11/2017,Scholar Travel,Award Costs,Diversity Travel,PIN029767,818.94,
DFID,CSC,10/11/2017,Scholar Travel,Award Costs,Diversity Travel,PIN029767,516.3,
DFID,CSC,10/11/2017,Scholar Travel,Award Costs,Diversity Travel,PIN029767,560.47,
DFID,CSC,10/11/2017,Scholar Travel,Award Costs,Diversity Travel,PIN029767,631.6,
DFID,CSC,10/11/2017,Scholar Travel,Award Costs,Diversity Travel,PIN029767,362.4,
DFID,CSC,10/11/2017,Scholar Travel,Award Costs,Diversity Travel,PIN029767,712.6,
DFID,CSC,10/11/2017,Scholar Travel,Award Costs,Diversity Travel,PIN029767,481,
DFID,CSC,10/11/2017,Scholar Travel,Award Costs,Diversity Travel,PIN029767,660.4,
DFID,CSC,10/11/2017,Scholar Travel,Award Costs,Diversity Travel,PIN029767,560.19,
DFID,CSC,10/11/2017,Scholar Travel,Award Costs,Diversity Travel,PIN029767,34,
DFID,CSC,10/11/2017,Scholar Travel,Award Costs,Diversity Travel,PIN029767,590.5,
DFID,CSC,10/11/2017,Scholar Travel,Award Costs,Diversity Travel,PIN029767,986.17,
DFID,CSC,10/11/2017,Scholar Travel,Award Costs,Diversity Travel,PIN029767,660,
DFID,CSC,10/11/2017,Scholar Travel,Award Costs,Diversity Travel,PIN029767,479.97,
DFID,CSC,10/11/2017,Scholar Travel,Award Costs,Diversity Travel,PIN029767,438.17,
DFID,CSC,10/11/2017,Scholar Travel,Award Costs,Diversity Travel,PIN029767,512.5,
DFID,CSC,10/11/2017,Scholar Travel,Award Costs,Diversity Travel,PIN029767,544.2,
DFID,CSC,10/11/2017,Scholar Travel,Award Costs,Diversity Travel,PIN029767,533.6,
DFID,CSC,10/11/2017,Scholar Travel,Award Costs,Diversity Travel,PIN029767,817.62,
DFID,CSC,10/11/2017,Scholar Travel,Award Costs,Diversity Travel,PIN029767,618.4,
DFID,CSC,10/11/2017,Scholar Travel,Award Costs,Diversity Travel,PIN029767,470.1,
DFID,CSC,10/11/2017,Scholar Travel,Award Costs,Diversity Travel,PIN029767,574.7,
DFID,CSC,10/11/2017,Scholar Travel,Award Costs,Diversity Travel,PIN029767,637.4,
DFID,CSC,10/11/2017,Scholar Travel,Award Costs,Diversity Travel,PIN029767,831.81,
DFID,CSC,10/11/2017,Scholar Travel,Award Costs,Diversity Travel,PIN029767,27.8,
DFID,CSC,10/11/2017,Scholar Travel,Award Costs,Diversity Travel,PIN029768,21,
DFID,CSC,10/11/2017,Scholar Travel,Award Costs,Diversity Travel,PIN029768,30.6,
DFID,CSC,10/11/2017,Scholar Travel,Award Costs,Diversity Travel,PIN029768,352.1,
DFID,CSC,10/11/2017,Scholar Travel,Award Costs,Diversity Travel,PIN029768,722.67,
DFID,CSC,10/11/2017,Scholar Travel,Award Costs,Diversity Travel,PIN029768,547.1,
DFID,CSC,10/11/2017,Scholar Travel,Award Costs,Diversity Travel,PIN029768,532.3,
DFID,CSC,10/11/2017,Scholar Travel,Award Costs,Diversity Travel,PIN029768,24.2,
DFID,CSC,10/11/2017,Scholar Travel,Award Costs,Diversity Travel,PIN029768,570.97,
DFID,CSC,10/11/2017,Scholar Travel,Award Costs,Diversity Travel,PIN029768,826.07,
DFID,CSC,10/11/2017,Scholar Travel,Award Costs,Diversity Travel,PIN029768,69,
DFID,CSC,10/11/2017,Scholar Travel,Award Costs,Diversity Travel,PIN029768,762.57,
DFID,CSC,10/11/2017,Fieldwork Airfare,Award Costs,Diversity Travel,PIN029768,180.3,
DFID,CSC,10/11/2017,Scholar Travel,Award Costs,Diversity Travel,PIN029768,1295.09,
DFID,CSC,10/11/2017,Scholar Travel,Award Costs,Diversity Travel,PIN029768,88,
DFID,CSC,10/11/2017,Scholar Travel,Award Costs,Diversity Travel,PIN029768,5,
DFID,CSC,10/11/2017,Scholar Travel,Award Costs,Diversity Travel,PIN029768,698.7,
DFID,CSC,10/11/2017,Fieldwork Airfare,Award Costs,Diversity Travel,PIN029768,1057.97,
DFID,CSC,10/11/2017,Scholar Travel,Award Costs,Diversity Travel,PIN029768,291.9,
DFID,CSC,10/11/2017,Scholar Travel,Award Costs,Diversity Travel,PIN029768,679.17,
DFID,CSC,10/11/2017,Scholar Travel,Award Costs,Diversity Travel,PIN029768,803.47,
DFID,CSC,10/11/2017,Scholar Travel,Award Costs,Diversity Travel,PIN029768,803.57,
DFID,CSC,10/11/2017,Scholar Travel,Award Costs,Diversity Travel,PIN029768,45,
DFID,CSC,10/11/2017,Scholar Travel,Award Costs,Diversity Travel,PIN029768,451.8,
DFID,CSC,10/11/2017,Scholar Travel,Award Costs,Diversity Travel,PIN029768,660.2,
DFID,CSC,10/11/2017,Scholar Travel,Award Costs,Diversity Travel,PIN029768,742.67,
DFID,CSC,10/11/2017,Scholar Travel,Award Costs,Diversity Travel,PIN029768,599.47,
DFID,CSC,10/11/2017,Scholar Travel,Award Costs,Diversity Travel,PIN029769,957.27,
DFID,CSC,10/11/2017,Scholar Travel,Award Costs,Diversity Travel,PIN029769,89.7,
DFID,CSC,10/11/2017,Scholar Travel,Award Costs,Diversity Travel,PIN029769,18.9,
DFID,CSC,10/11/2017,Scholar Travel,Award Costs,Diversity Travel,PIN029769,27.4,
DFID,CSC,10/11/2017,Scholar Travel,Award Costs,Diversity Travel,PIN029769,33.8,
DFID,CSC,10/11/2017,Scholar Travel,Award Costs,Diversity Travel,PIN029769,34.8,
DFID,CSC,10/11/2017,Scholar Travel,Award Costs,Diversity Travel,PIN029769,825.39,
DFID,CSC,10/11/2017,Scholar Travel,Award Costs,Diversity Travel,PIN029769,1024.14,
DFID,CSC,10/11/2017,Scholar Travel,Award Costs,Diversity Travel,PIN029769,28.5,
DFID,CSC,10/11/2017,Scholar Travel,Award Costs,Diversity Travel,PIN029769,680.72,
DFID,CSC,10/11/2017,Scholar Travel,Award Costs,Diversity Travel,PIN029769,296.22,
DFID,CSC,10/11/2017,Scholar Travel,Award Costs,Diversity Travel,PIN029769,25,
DFID,CSC,10/11/2017,Scholar Travel,Award Costs,Diversity Travel,PIN029769,405,
DFID,CSC,10/11/2017,Scholar Travel,Award Costs,Diversity Travel,PIN029769,465.5,
DFID,CSC,10/11/2017,Scholar Travel,Award Costs,Diversity Travel,PIN029769,110,
DFID,CSC,10/11/2017,Scholar Travel,Award Costs,Diversity Travel,PIN029769,584.89,
DFID,CSC,10/11/2017,Scholar Travel,Award Costs,Diversity Travel,PIN029769,645.17,
DFID,CSC,10/11/2017,Scholar Travel,Award Costs,Diversity Travel,PIN029769,105.77,
DFID,CSC,10/11/2017,Scholar Travel,Award Costs,Diversity Travel,PIN029769,393.2,
DFID,CSC,10/11/2017,Scholar Travel,Award Costs,Diversity Travel,PIN029769,297.4,
DFID,CSC,10/11/2017,Scholar Travel,Award Costs,Diversity Travel,PIN029769,842.16,
DFID,CSC,10/11/2017,Scholar Travel,Award Costs,Diversity Travel,PIN029769,499.1,
DFID,CSC,10/11/2017,Scholar Travel,Award Costs,Diversity Travel,PIN029769,450.97,
DFID,CSC,10/11/2017,Scholar Travel,Award Costs,Diversity Travel,PIN029769,559.44,
DFID,CSC,10/11/2017,Scholar Travel,Award Costs,Diversity Travel,PIN029769,858,
DFID,CSC,10/11/2017,Scholar Travel,Award Costs,Diversity Travel,PIN029769,499.1,
DFID,CSC,10/11/2017,Scholar Travel,Award Costs,Diversity Travel,PIN029769,685.17,
DFID,CSC,10/11/2017,Scholar Travel,Award Costs,Diversity Travel,PIN029769,596.07,
DFID,CSC,10/11/2017,Fieldwork Airfare,Award Costs,Diversity Travel,PIN029769,487.09,
DFID,CSC,10/11/2017,Scholar Travel,Award Costs,Diversity Travel,PIN029769,463.9,
DFID,CSC,10/11/2017,Scholar Travel,Award Costs,Diversity Travel,PIN029769,438.9,
DFID,CSC,10/11/2017,Scholar Travel,Award Costs,Diversity Travel,PIN029769,640,
DFID,CSC,10/11/2017,Scholar Travel,Award Costs,Diversity Travel,PIN029769,251.9,
DFID,CSC,10/11/2017,Scholar Travel,Award Costs,Diversity Travel,PIN029769,429.6,
DFID,CSC,10/11/2017,Scholar Travel,Award Costs,Diversity Travel,PIN029769,277.1,
DFID,CSC,10/11/2017,Scholar Travel,Award Costs,Diversity Travel,PIN029769,386.3,
DFID,CSC,10/11/2017,Scholar Travel,Award Costs,Diversity Travel,PIN029769,21.8,
DFID,CSC,10/11/2017,Scholar Travel,Award Costs,Diversity Travel,PIN029769,-499.1,
DFID,CSC,10/11/2017,Scholar Travel,Award Costs,Diversity Travel,PIN029769,20.4,
DFID,CSC,10/11/2017,Scholar Travel,Award Costs,Diversity Travel,PIN029769,640,
DFID,CSC,10/11/2017,Scholar Travel,Award Costs,Diversity Travel,PIN029769,636.8,
DFID,CSC,10/11/2017,Secretariat Travel,Programme Costs,Gem Travel,PIN029773,2,
DFID,CSC,10/11/2017,Secretariat Travel,Programme Costs,Gem Travel,PIN029773,598.8,
DFID,CSC,10/11/2017,Secretariat Service Provision,Admin Costs,Association of Commonwealth Univs,PIN029774,57733.4,Admin fee to 31st December 2017
DFID,CSC,10/11/2017,Secretariat Service Provision,Admin Costs,Association of Commonwealth Univs,PIN029774,288667,Admin fee to 31st December 2017
DFID,CSC,10/11/2017,Bank Charges,Award Costs,Mastercard Prepaid Management Services Ltd,PIN029961,28.79,
DFID,CSC,10/11/2017,Scholar Allowances,Award Costs,Scholar,PIN029961,414,
DFID,CSC,10/11/2017,Scholar Stipend,Award Costs,Scholar,PIN029961,2464.57,
DFID,CSC,13/11/2017,Bank Charges,Award Costs,Mastercard Prepaid Management Services Ltd,PIN029962,78.05,
DFID,CSC,13/11/2017,Scholar Allowances,Award Costs,Scholar,PIN029962,414,
DFID,CSC,13/11/2017,Scholar Stipend,Award Costs,Scholar,PIN029962,1904.76,
DFID,CSC,13/11/2017,Visa Costs,Award Costs,Scholar,PIN029962,235,
DFID,CSC,13/11/2017,Scholar Allowances,Award Costs,Scholar,PIN029962,914.64,
DFID,CSC,13/11/2017,Scholar Stipend,Award Costs,Scholar,PIN029962,3610.92,
DFID,CSC,13/11/2017,Immigration Health Surcharge,Award Costs,Scholar,PIN029962,200,
DFID,CSC,13/11/2017,Scholar Allowances,Award Costs,Scholar,PIN029962,100,
DFID,CSC,13/11/2017,Award Support Costs,Award Costs,Scholar,PIN029962,425,
DFID,CSC,15/11/2017,Scholar Allowances,Award Costs,Scholar,PIN029787,906.07,
DFID,CSC,15/11/2017,Scholar Allowances,Award Costs,Scholar,PIN029787,608.47,
DFID,CSC,15/11/2017,Scholar Allowances,Award Costs,Scholar,PIN029788,753.23,
DFID,CSC,15/11/2017,Scholar Allowances,Award Costs,Scholar,PIN029788,1121.76,
DFID,CSC,16/11/2017,Scholar Engagement,Programme Costs,Interserve (Facilities Management) Limited,PIN029891,1400,
DFID,CSC,16/11/2017,Scholar Engagement,Programme Costs,Interserve (Facilities Management) Limited,PIN029891,7000,
DFID,CSC,16/11/2017,Bank Charges,Award Costs,Mastercard Prepaid Management Services Ltd,PIN029964,134.96,
DFID,CSC,16/11/2017,Scholar Allowances,Award Costs,Scholar,PIN029964,414,
DFID,CSC,16/11/2017,Scholar Stipend,Award Costs,Scholar,PIN029964,2164.2,
DFID,CSC,16/11/2017,Immigration Health Surcharge,Award Costs,Scholar,PIN029964,200,
DFID,CSC,16/11/2017,Scholar Allowances,Award Costs,Scholar,PIN029964,100,
DFID,CSC,16/11/2017,Visa Costs,Award Costs,Scholar,PIN029964,235,
DFID,CSC,16/11/2017,Scholar Allowances,Award Costs,Scholar,PIN029964,990,
DFID,CSC,16/11/2017,Scholar Stipend,Award Costs,Scholar,PIN029964,2696,
DFID,CSC,16/11/2017,Scholar Allowances,Award Costs,Scholar,PIN029964,100,
DFID,CSC,16/11/2017,Visa Costs,Award Costs,Scholar,PIN029964,179,
DFID,CSC,16/11/2017,Scholar Allowances,Award Costs,Scholar,PIN029964,990,
DFID,CSC,16/11/2017,Scholar Stipend,Award Costs,Scholar,PIN029964,3345.6,
DFID,CSC,16/11/2017,Visa Costs,Award Costs,Scholar,PIN029964,235,
DFID,CSC,16/11/2017,Scholar Allowances,Award Costs,Scholar,PIN029964,457.32,
DFID,CSC,16/11/2017,Scholar Stipend,Award Costs,Scholar,PIN029964,1389.8,
DFID,CSC,17/11/2017,Scholar Stipend,Award Costs,Scholar,PIN029791,3144.7,
DFID,CSC,17/11/2017,Scholar Allowances,Award Costs,Scholar,PIN029792,600,
DFID,CSC,17/11/2017,Scholar Allowances,Award Costs,Univ of Central Lancashire,PIN029798,405,
DFID,CSC,17/11/2017,Award Support Grant,Award Costs,Univ of Central Lancashire,PIN029798,8000,
DFID,CSC,17/11/2017,Tuition Fee,Award Costs,Univ of Central Lancashire,PIN029798,11560,
DFID,CSC,17/11/2017,Tuition Fee,Award Costs,The University of Edinburgh,PIN029800,-4335,
DFID,CSC,17/11/2017,Tuition Fee,Award Costs,The University of Edinburgh,PIN029801,4600,
DFID,CSC,17/11/2017,Award Support Grant,Award Costs,The University of Leeds,PIN029802,13843.73,
DFID,CSC,17/11/2017,Scholar Allowances,Award Costs,University of Stirling,PIN029803,200,
DFID,CSC,17/11/2017,Scholar Allowances,Award Costs,University of Stirling,PIN029803,225,
DFID,CSC,17/11/2017,Scholar Allowances,Award Costs,University of Stirling,PIN029803,200,
DFID,CSC,17/11/2017,Scholar Travel,Award Costs,University of Stirling,PIN029803,780,
DFID,CSC,17/11/2017,Scholar Travel,Award Costs,Goldsmiths College,PIN029804,330.15,
DFID,CSC,17/11/2017,Scholar Travel,Award Costs,Goldsmiths College,PIN029804,780,
DFID,CSC,17/11/2017,Scholar Travel,Award Costs,Coventry University,PIN029805,107.71,
DFID,CSC,17/11/2017,Scholar Travel,Award Costs,Coventry University,PIN029805,85.71,
DFID,CSC,17/11/2017,Scholar Travel,Award Costs,Coventry University,PIN029805,1017.24,
DFID,CSC,17/11/2017,Tuition Fee,Award Costs,Liverpool John Moores University,PIN029806,9304,
DFID,CSC,17/11/2017,Tuition Fee,Award Costs,Liverpool John Moores University,PIN029807,12660,
DFID,CSC,17/11/2017,Tuition Fee,Award Costs,Liverpool John Moores University,PIN029808,9064,
DFID,CSC,17/11/2017,Tuition Fee,Award Costs,Liverpool John Moores University,PIN029809,11630,
DFID,CSC,17/11/2017,Tuition Fee,Award Costs,Sch Oriental & African Studies,PIN029810,37580,Tuition fees for 2 scholars
DFID,CSC,17/11/2017,Scholar Allowances,Award Costs,Sch Oriental & African Studies,PIN029811,400,
DFID,CSC,17/11/2017,Scholar Allowances,Award Costs,Sch Oriental & African Studies,PIN029811,450,
DFID,CSC,17/11/2017,Scholar Travel,Award Costs,Sch Oriental & African Studies,PIN029811,1168.2,
DFID,CSC,17/11/2017,Tuition Fee,Award Costs,University of Manchester,PIN029812,25200,Tuition fees
DFID,CSC,17/11/2017,Tuition Fee,Award Costs,University of Manchester,PIN029813,17600,
DFID,CSC,17/11/2017,Tuition Fee,Award Costs,University of Manchester,PIN029814,16800,
DFID,CSC,17/11/2017,Tuition Fee,Award Costs,University of Manchester,PIN029815,12400,
DFID,CSC,17/11/2017,Tuition Fee,Award Costs,University of Manchester,PIN029816,11600,
DFID,CSC,17/11/2017,Tuition Fee,Award Costs,University of Manchester,PIN029817,21200,
DFID,CSC,17/11/2017,Tuition Fee,Award Costs,University of Manchester,PIN029818,16800,
DFID,CSC,17/11/2017,Tuition Fee,Award Costs,University of Manchester,PIN029819,16400,
DFID,CSC,17/11/2017,Tuition Fee,Award Costs,University of Manchester,PIN029820,17600,
DFID,CSC,17/11/2017,Tuition Fee,Award Costs,University of Manchester,PIN029821,16000,
DFID,CSC,17/11/2017,Tuition Fee,Award Costs,University of Manchester,PIN029822,16800,
DFID,CSC,17/11/2017,Tuition Fee,Award Costs,University of Manchester,PIN029823,18000,
DFID,CSC,17/11/2017,Tuition Fee,Award Costs,University of Manchester,PIN029824,16000,
DFID,CSC,17/11/2017,Tuition Fee,Award Costs,University of Manchester,PIN029825,13600,
DFID,CSC,17/11/2017,Tuition Fee,Award Costs,University of Manchester,PIN029826,14000,
DFID,CSC,17/11/2017,Tuition Fee,Award Costs,University of Manchester,PIN029827,12400,
DFID,CSC,17/11/2017,Tuition Fee,Award Costs,University of Manchester,PIN029828,16800,
DFID,CSC,17/11/2017,Tuition Fee,Award Costs,University of Manchester,PIN029829,13600,
DFID,CSC,17/11/2017,Tuition Fee,Award Costs,University of Manchester,PIN029830,14800,
DFID,CSC,17/11/2017,Tuition Fee,Award Costs,University of Manchester,PIN029831,13600,
DFID,CSC,17/11/2017,Tuition Fee,Award Costs,University of Manchester,PIN029832,17600,
DFID,CSC,17/11/2017,Tuition Fee,Award Costs,University of Manchester,PIN029833,17600,
DFID,CSC,17/11/2017,Tuition Fee,Award Costs,Kings College London,PIN029834,18420,
DFID,CSC,17/11/2017,Tuition Fee,Award Costs,Kings College London,PIN029835,18000,
DFID,CSC,17/11/2017,Tuition Fee,Award Costs,University of Aberdeen,PIN029836,14400,
DFID,CSC,17/11/2017,Tuition Fee,Award Costs,University of Aberdeen,PIN029837,14400,
DFID,CSC,17/11/2017,Tuition Fee,Award Costs,University of Aberdeen,PIN029838,11440,
DFID,CSC,17/11/2017,Tuition Fee,Award Costs,University of Aberdeen,PIN029839,14400,
DFID,CSC,17/11/2017,Tuition Fee,Award Costs,University of Aberdeen,PIN029840,14400,
DFID,CSC,17/11/2017,Tuition Fee,Award Costs,University of Aberdeen,PIN029841,14400,
DFID,CSC,17/11/2017,Tuition Fee,Award Costs,University of Aberdeen,PIN029842,11440,
DFID,CSC,17/11/2017,Tuition Fee,Award Costs,University of Aberdeen,PIN029843,14300,
DFID,CSC,17/11/2017,Tuition Fee,Award Costs,University of Aberdeen,PIN029844,14300,
DFID,CSC,17/11/2017,Tuition Fee,Award Costs,University of Newcastle upon Tyne,PIN029845,13268,
DFID,CSC,17/11/2017,Tuition Fee,Award Costs,University of Newcastle upon Tyne,PIN029846,17768,
DFID,CSC,17/11/2017,Tuition Fee,Award Costs,University of Newcastle upon Tyne,PIN029847,17768,
DFID,CSC,17/11/2017,Tuition Fee,Award Costs,University of Newcastle upon Tyne,PIN029848,15516,
DFID,CSC,17/11/2017,Tuition Fee,Award Costs,University of Newcastle upon Tyne,PIN029849,16500,
DFID,CSC,17/11/2017,Tuition Fee,Award Costs,University of Newcastle upon Tyne,PIN029850,13268,
DFID,CSC,17/11/2017,Tuition Fee,Award Costs,University of Newcastle upon Tyne,PIN029851,13268,
DFID,CSC,17/11/2017,Tuition Fee,Award Costs,University of Newcastle upon Tyne,PIN029852,17935,
DFID,CSC,17/11/2017,Tuition Fee,Award Costs,University of Newcastle upon Tyne,PIN029853,19000,
DFID,CSC,17/11/2017,Tuition Fee,Award Costs,University of Newcastle upon Tyne,PIN029854,14348,
DFID,CSC,17/11/2017,Tuition Fee,Award Costs,University of Newcastle upon Tyne,PIN029855,17768,
DFID,CSC,17/11/2017,Tuition Fee,Award Costs,University of Newcastle upon Tyne,PIN029856,17935,
DFID,CSC,17/11/2017,Tuition Fee,Award Costs,University of Newcastle upon Tyne,PIN029857,13980,
DFID,CSC,17/11/2017,Tuition Fee,Award Costs,University of Newcastle upon Tyne,PIN029858,17935,
DFID,CSC,17/11/2017,Tuition Fee,Award Costs,University of Newcastle upon Tyne,PIN029859,17428,
DFID,CSC,17/11/2017,Tuition Fee,Award Costs,University of Newcastle upon Tyne,PIN029860,5760,
DFID,CSC,17/11/2017,Tuition Fee,Award Costs,Linacre College Oxford,PIN029861,3021,
DFID,CSC,17/11/2017,Tuition Fee,Award Costs,Linacre College Oxford,PIN029861,15468,
DFID,CSC,17/11/2017,Tuition Fee,Award Costs,Balliol College Oxford,PIN029862,3021,
DFID,CSC,17/11/2017,Tuition Fee,Award Costs,Balliol College Oxford,PIN029862,15468,
DFID,CSC,17/11/2017,Tuition Fee,Award Costs,Balliol College Oxford,PIN029862,2848,
DFID,CSC,17/11/2017,Tuition Fee,Award Costs,Balliol College Oxford,PIN029862,11876,
DFID,CSC,17/11/2017,Award Support Grant,Award Costs,University of Oxford,PIN029863,5000,
DFID,CSC,17/11/2017,Tuition Fee,Award Costs,University of Hull,PIN029864,12000,
DFID,CSC,17/11/2017,Tuition Fee,Award Costs,University of Greenwich,PIN029865,11200,
DFID,CSC,17/11/2017,Tuition Fee,Award Costs,University of Greenwich,PIN029866,10000,
DFID,CSC,17/11/2017,Award Support Grant,Award Costs,University of Greenwich,PIN029867,2000,
DFID,CSC,17/11/2017,Tuition Fee,Award Costs,University of Reading,PIN029868,15270,
DFID,CSC,17/11/2017,Tuition Fee,Award Costs,University of Reading,PIN029869,11480,
DFID,CSC,17/11/2017,Tuition Fee,Award Costs,University of Reading,PIN029870,7544,
DFID,CSC,17/11/2017,Award Support Grant,Award Costs,University of Reading,PIN029871,8000,
DFID,CSC,17/11/2017,Tuition Fee,Award Costs,University of Reading,PIN029872,12216,
DFID,CSC,17/11/2017,Tuition Fee,Award Costs,University of Reading,PIN029873,11480,
DFID,CSC,17/11/2017,Tuition Fee,Award Costs,University of Reading,PIN029874,15088,
DFID,CSC,17/11/2017,Award Support Grant,Award Costs,University of Reading,PIN029875,2250,
DFID,CSC,17/11/2017,Tuition Fee,Award Costs,University of Reading,PIN029876,14720,
DFID,CSC,17/11/2017,Tuition Fee,Award Costs,University of Reading,PIN029877,18300,
DFID,CSC,17/11/2017,Award Support Grant,Award Costs,University of Reading,PIN029878,800,
DFID,CSC,17/11/2017,Tuition Fee,Award Costs,University of Reading,PIN029878,12544,
DFID,CSC,17/11/2017,Tuition Fee,Award Costs,University of Reading,PIN029879,11480,
DFID,CSC,17/11/2017,Award Support Grant,Award Costs,University of Reading,PIN029880,800,
DFID,CSC,17/11/2017,Tuition Fee,Award Costs,University of Reading,PIN029881,15088,
DFID,CSC,17/11/2017,Award Support Grant,Award Costs,University of Reading,PIN029882,1000,
DFID,CSC,17/11/2017,Tuition Fee,Award Costs,University of Reading,PIN029883,14720,
DFID,CSC,17/11/2017,Award Support Grant,Award Costs,University of Reading,PIN029884,5000,
DFID,CSC,17/11/2017,Award Support Grant,Award Costs,University of Reading,PIN029885,1000,
DFID,CSC,17/11/2017,Tuition Fee,Award Costs,University of Reading,PIN029886,15088,
DFID,CSC,17/11/2017,Tuition Fee,Award Costs,Liverpool John Moores University,PIN029889,-2472,
DFID,CSC,17/11/2017,Bank Charges,Award Costs,Mastercard Prepaid Management Services Ltd,PIN029965,14.07,
DFID,CSC,17/11/2017,Scholar Allowances,Award Costs,Scholar,PIN029965,1406.75,
DFID,CSC,20/11/2017,Scholar Allowances,Award Costs,Scholar,PIN029892,693.2,
DFID,CSC,20/11/2017,Scholar Allowances,Award Costs,Scholar,PIN029892,465.52,
DFID,CSC,20/11/2017,Bank Charges,Award Costs,Mastercard Prepaid Management Services Ltd,PIN029966,5.8,
DFID,CSC,20/11/2017,Scholar Allowances,Award Costs,Scholar,PIN029966,400,
DFID,CSC,20/11/2017,Scholar Allowances,Award Costs,Scholar,PIN029966,180,
DFID,CSC,24/11/2017,Scholar Advances,Award Costs,Scholar,PIN029897,1000,
DFID,CSC,24/11/2017,Scholar Allowances,Award Costs,Scholar,PIN029902,458,
DFID,CSC,24/11/2017,Scholar Allowances,Award Costs,Scholar,PIN029902,458,
DFID,CSC,24/11/2017,Scholar Stipend,Award Costs,Scholar,PIN029902,2130,
DFID,CSC,24/11/2017,Scholar Allowances,Award Costs,Scholar,PIN029904,545,
DFID,CSC,24/11/2017,Scholar Travel,Award Costs,Diversity Travel,PIN029905,377,
DFID,CSC,24/11/2017,Scholar Travel,Award Costs,Diversity Travel,PIN029905,992.17,
DFID,CSC,24/11/2017,Scholar Travel,Award Costs,Diversity Travel,PIN029905,446.7,
DFID,CSC,24/11/2017,Scholar Travel,Award Costs,Diversity Travel,PIN029905,635.57,
DFID,CSC,24/11/2017,Scholar Travel,Award Costs,Diversity Travel,PIN029905,379.47,
DFID,CSC,24/11/2017,Scholar Travel,Award Costs,Diversity Travel,PIN029905,634.5,
DFID,CSC,24/11/2017,Scholar Travel,Award Costs,Diversity Travel,PIN029905,462.82,
DFID,CSC,24/11/2017,Scholar Travel,Award Costs,Diversity Travel,PIN029905,1085.31,
DFID,CSC,24/11/2017,Scholar Travel,Award Costs,Diversity Travel,PIN029905,391.2,
DFID,CSC,24/11/2017,Scholar Travel,Award Costs,Diversity Travel,PIN029905,565.51,
DFID,CSC,24/11/2017,Scholar Travel,Award Costs,Diversity Travel,PIN029905,259.8,
DFID,CSC,24/11/2017,Scholar Travel,Award Costs,Diversity Travel,PIN029905,471.2,
DFID,CSC,24/11/2017,Scholar Travel,Award Costs,Diversity Travel,PIN029905,465.82,
DFID,CSC,24/11/2017,Scholar Travel,Award Costs,Diversity Travel,PIN029905,552.1,
DFID,CSC,24/11/2017,Scholar Travel,Award Costs,Diversity Travel,PIN029905,769.19,
DFID,CSC,24/11/2017,Scholar Travel,Award Costs,Diversity Travel,PIN029905,769.19,
DFID,CSC,24/11/2017,Scholar Travel,Award Costs,Diversity Travel,PIN029905,452.47,
DFID,CSC,24/11/2017,Scholar Travel,Award Costs,Diversity Travel,PIN029905,426.9,
DFID,CSC,24/11/2017,Scholar Travel,Award Costs,Diversity Travel,PIN029905,650,
DFID,CSC,24/11/2017,Scholar Travel,Award Costs,Diversity Travel,PIN029905,835.2,
DFID,CSC,24/11/2017,Scholar Travel,Award Costs,Diversity Travel,PIN029905,835.24,
DFID,CSC,24/11/2017,Scholar Travel,Award Costs,Diversity Travel,PIN029905,349.7,
DFID,CSC,24/11/2017,Scholar Travel,Award Costs,Diversity Travel,PIN029905,604.92,
DFID,CSC,24/11/2017,Scholar Travel,Award Costs,Diversity Travel,PIN029905,565,
DFID,CSC,24/11/2017,Scholar Travel,Award Costs,Diversity Travel,PIN029905,366,
DFID,CSC,24/11/2017,Scholar Travel,Award Costs,Diversity Travel,PIN029905,769.79,
DFID,CSC,24/11/2017,Scholar Travel,Award Costs,Diversity Travel,PIN029905,1242.79,
DFID,CSC,24/11/2017,Scholar Travel,Award Costs,Diversity Travel,PIN029905,978.24,
DFID,CSC,24/11/2017,Scholar Travel,Award Costs,Diversity Travel,PIN029905,1143.4,
DFID,CSC,24/11/2017,Scholar Travel,Award Costs,Diversity Travel,PIN029905,760.99,
DFID,CSC,24/11/2017,Scholar Travel,Award Costs,Diversity Travel,PIN029905,574.92,
DFID,CSC,24/11/2017,Scholar Travel,Award Costs,Diversity Travel,PIN029905,712.3,
DFID,CSC,24/11/2017,Scholar Travel,Award Costs,Diversity Travel,PIN029905,529.79,
DFID,CSC,24/11/2017,Scholar Travel,Award Costs,Diversity Travel,PIN029905,529.79,
DFID,CSC,24/11/2017,Scholar Travel,Award Costs,Diversity Travel,PIN029905,646.7,
DFID,CSC,24/11/2017,Scholar Travel,Award Costs,Diversity Travel,PIN029905,383.9,
DFID,CSC,24/11/2017,Scholar Travel,Award Costs,Diversity Travel,PIN029905,531.08,
DFID,CSC,24/11/2017,Scholar Travel,Award Costs,Diversity Travel,PIN029905,496,
DFID,CSC,24/11/2017,Scholar Travel,Award Costs,Diversity Travel,PIN029905,519.3,
DFID,CSC,24/11/2017,Scholar Travel,Award Costs,Diversity Travel,PIN029905,364.6,
DFID,CSC,24/11/2017,Scholar Travel,Award Costs,Diversity Travel,PIN029905,706.79,
DFID,CSC,24/11/2017,Scholar Travel,Award Costs,Diversity Travel,PIN029905,-309.23,
DFID,CSC,24/11/2017,Scholar Travel,Award Costs,Diversity Travel,PIN029905,411.2,
DFID,CSC,24/11/2017,Scholar Travel,Award Costs,Diversity Travel,PIN029905,455.39,
DFID,CSC,24/11/2017,Scholar Travel,Award Costs,Diversity Travel,PIN029905,528.67,
DFID,CSC,24/11/2017,Scholar Travel,Award Costs,Diversity Travel,PIN029905,438.6,
DFID,CSC,24/11/2017,Scholar Travel,Award Costs,Diversity Travel,PIN029905,16,
DFID,CSC,24/11/2017,Scholar Travel,Award Costs,Diversity Travel,PIN029905,576.6,
DFID,CSC,24/11/2017,Scholar Travel,Award Costs,Diversity Travel,PIN029905,28,
DFID,CSC,24/11/2017,Scholar Travel,Award Costs,Diversity Travel,PIN029905,47,
DFID,CSC,24/11/2017,Scholar Travel,Award Costs,Diversity Travel,PIN029905,36,
DFID,CSC,24/11/2017,Scholar Travel,Award Costs,Diversity Travel,PIN029905,613.3,
DFID,CSC,24/11/2017,Scholar Travel,Award Costs,Diversity Travel,PIN029905,745.17,
DFID,CSC,24/11/2017,Scholar Travel,Award Costs,Diversity Travel,PIN029905,387.8,
DFID,CSC,24/11/2017,Scholar Travel,Award Costs,Diversity Travel,PIN029905,433.72,
DFID,CSC,24/11/2017,Scholar Travel,Award Costs,Diversity Travel,PIN029905,368.8,
DFID,CSC,24/11/2017,Scholar Travel,Award Costs,Diversity Travel,PIN029905,395.1,
DFID,CSC,24/11/2017,Scholar Travel,Award Costs,Diversity Travel,PIN029905,43.6,
DFID,CSC,24/11/2017,Scholar Travel,Award Costs,Diversity Travel,PIN029905,17,
DFID,CSC,24/11/2017,Scholar Travel,Award Costs,Diversity Travel,PIN029905,659.5,
DFID,CSC,24/11/2017,Scholar Travel,Award Costs,Diversity Travel,PIN029905,518.1,
DFID,CSC,24/11/2017,Scholar Travel,Award Costs,Diversity Travel,PIN029905,416.1,
DFID,CSC,24/11/2017,Scholar Travel,Award Costs,Diversity Travel,PIN029905,364.4,
DFID,CSC,24/11/2017,Scholar Travel,Award Costs,Diversity Travel,PIN029905,613.3,
DFID,CSC,24/11/2017,Scholar Travel,Award Costs,Diversity Travel,PIN029905,461.4,
DFID,CSC,24/11/2017,Scholar Travel,Award Costs,Diversity Travel,PIN029905,484.32,
DFID,CSC,24/11/2017,Scholar Travel,Award Costs,Diversity Travel,PIN029905,531.9,
DFID,CSC,24/11/2017,Scholar Travel,Award Costs,Diversity Travel,PIN029905,561.2,
DFID,CSC,24/11/2017,Scholar Travel,Award Costs,Diversity Travel,PIN029905,357.5,
DFID,CSC,24/11/2017,Scholar Travel,Award Costs,Diversity Travel,PIN029905,264.6,
DFID,CSC,24/11/2017,Scholar Travel,Award Costs,Diversity Travel,PIN029905,389.99,
DFID,CSC,24/11/2017,Scholar Travel,Award Costs,Diversity Travel,PIN029905,647.29,
DFID,CSC,24/11/2017,Scholar Travel,Award Costs,Diversity Travel,PIN029905,504,
DFID,CSC,24/11/2017,Scholar Travel,Award Costs,Diversity Travel,PIN029905,338.4,
DFID,CSC,24/11/2017,Scholar Travel,Award Costs,Diversity Travel,PIN029905,490.4,
DFID,CSC,24/11/2017,Scholar Travel,Award Costs,Diversity Travel,PIN029905,484.3,
DFID,CSC,24/11/2017,Scholar Travel,Award Costs,Diversity Travel,PIN029905,680.7,
DFID,CSC,24/11/2017,Scholar Travel,Award Costs,Diversity Travel,PIN029905,42.1,
DFID,CSC,24/11/2017,Scholar Travel,Award Costs,Diversity Travel,PIN029905,521.9,
DFID,CSC,24/11/2017,Scholar Travel,Award Costs,Diversity Travel,PIN029905,687.3,
DFID,CSC,24/11/2017,Scholar Travel,Award Costs,Diversity Travel,PIN029905,790.49,
DFID,CSC,24/11/2017,Scholar Travel,Award Costs,BISHOP GROSSETESTE UNIVERSITY,PIN029908,636.46,
DFID,CSC,24/11/2017,Tuition Fee,Award Costs,BISHOP GROSSETESTE UNIVERSITY,PIN029910,12500,
DFID,CSC,24/11/2017,Award Support Grant,Award Costs,University of Bath,PIN029912,10000,
DFID,CSC,24/11/2017,Tuition Fee,Award Costs,University of Bath,PIN029912,15200,
DFID,CSC,24/11/2017,Scholar Allowances,Award Costs,University of Bath,PIN029913,200,
DFID,CSC,24/11/2017,Scholar Allowances,Award Costs,University of Bath,PIN029913,225,
DFID,CSC,24/11/2017,Scholar Travel,Award Costs,University of Bath,PIN029913,426.5,
DFID,CSC,24/11/2017,Award Support Grant,Award Costs,University of Bath,PIN029914,5000,
DFID,CSC,24/11/2017,Tuition Fee,Award Costs,University of Bath,PIN029914,15200,
DFID,CSC,24/11/2017,Scholar Allowances,Award Costs,University of Bath,PIN029915,200,
DFID,CSC,24/11/2017,Scholar Allowances,Award Costs,University of Bath,PIN029915,225,
DFID,CSC,24/11/2017,Scholar Travel,Award Costs,University of Bath,PIN029915,352,
DFID,CSC,24/11/2017,Tuition Fee,Award Costs,University of Bath,PIN029916,20300,
DFID,CSC,24/11/2017,Scholar Allowances,Award Costs,University of Bath,PIN029916,200,
DFID,CSC,24/11/2017,Scholar Allowances,Award Costs,University of Bath,PIN029916,225,
DFID,CSC,24/11/2017,Visa Costs,Award Costs,University of Bath,PIN029916,74.11,
DFID,CSC,24/11/2017,Scholar Travel,Award Costs,University of Bath,PIN029916,540,
DFID,CSC,24/11/2017,Visa Costs,Award Costs,University of Bath,PIN029917,50.7,
DFID,CSC,24/11/2017,Tuition Fee,Award Costs,University of Bath,PIN029917,20300,
DFID,CSC,24/11/2017,Scholar Allowances,Award Costs,University of Bath,PIN029917,200,
DFID,CSC,24/11/2017,Scholar Allowances,Award Costs,University of Bath,PIN029917,225,
DFID,CSC,24/11/2017,Scholar Travel,Award Costs,University of Bath,PIN029917,358.1,
DFID,CSC,24/11/2017,Award Support Grant,Award Costs,Birkbeck College,PIN029918,5000,
DFID,CSC,24/11/2017,Tuition Fee,Award Costs,The University of Birmingham,PIN029919,15912,
DFID,CSC,24/11/2017,Award Support Grant,Award Costs,University of Cambridge,PIN029920,683.33,
DFID,CSC,24/11/2017,Award Support Grant,Award Costs,University of Cambridge,PIN029920,3416.67,
DFID,CSC,24/11/2017,Tuition Fee,Award Costs,Green Templeton College,PIN029922,17885,
DFID,CSC,24/11/2017,Award Support Grant,Award Costs,Cranfield University,PIN029923,500,
DFID,CSC,24/11/2017,Award Support Grant,Award Costs,Cranfield University,PIN029923,2500,
DFID,CSC,24/11/2017,Tuition Fee,Award Costs,Cranfield University,PIN029924,14000,
DFID,CSC,24/11/2017,Tuition Fee,Award Costs,Cranfield University,PIN029925,14000,
DFID,CSC,24/11/2017,Award Support Grant,Award Costs,The University of Edinburgh,PIN029926,13500,
DFID,CSC,24/11/2017,Award Support Grant,Award Costs,The University of Edinburgh,PIN029926,4000,
DFID,CSC,24/11/2017,Tuition Fee,Award Costs,Keele University,PIN029927,13350,
DFID,CSC,24/11/2017,Tuition Fee,Award Costs,Keele University,PIN029928,13750,
DFID,CSC,24/11/2017,Tuition Fee,Award Costs,Keele University,PIN029929,14000,
DFID,CSC,24/11/2017,Tuition Fee,Award Costs,Keele University,PIN029930,13350,
DFID,CSC,24/11/2017,Tuition Fee,Award Costs,Keele University,PIN029931,13350,
DFID,CSC,24/11/2017,Scholar Allowances,Award Costs,Lond Sch Hygiene & Tropical Me,PIN029932,225,
DFID,CSC,24/11/2017,Scholar Travel,Award Costs,Lond Sch Hygiene & Tropical Me,PIN029932,412.3,
DFID,CSC,24/11/2017,Tuition Fee,Award Costs,Lond Sch Hygiene & Tropical Me,PIN029933,21500,
DFID,CSC,24/11/2017,Visa Costs,Award Costs,Lond Sch Hygiene & Tropical Me,PIN029934,75.67,
DFID,CSC,24/11/2017,Scholar Travel,Award Costs,Lond Sch Hygiene & Tropical Me,PIN029934,444.8,
DFID,CSC,24/11/2017,Scholar Allowances,Award Costs,Lond Sch Hygiene & Tropical Me,PIN029934,200,
DFID,CSC,24/11/2017,Scholar Allowances,Award Costs,Lond Sch Hygiene & Tropical Me,PIN029934,225,
DFID,CSC,24/11/2017,Award Support Grant,Award Costs,University of Liverpool,PIN029935,9240,
DFID,CSC,24/11/2017,Award Support Grant,Award Costs,University of Liverpool,PIN029935,3200,
DFID,CSC,24/11/2017,Tuition Fee,Award Costs,University of Leicester,PIN029936,11200,
DFID,CSC,24/11/2017,Award Support Grant,Award Costs,Liverpool John Moores University,PIN029937,2400,
DFID,CSC,24/11/2017,Award Support Grant,Award Costs,Liverpool John Moores University,PIN029937,9000,
DFID,CSC,24/11/2017,Award Support Grant,Award Costs,Liverpool John Moores University,PIN029938,9000,
DFID,CSC,24/11/2017,Award Support Grant,Award Costs,Liverpool John Moores University,PIN029938,2400,
DFID,CSC,24/11/2017,Tuition Fee,Award Costs,University of Manchester,PIN029939,11600,
DFID,CSC,24/11/2017,Tuition Fee,Award Costs,University of Manchester,PIN029940,13600,
DFID,CSC,24/11/2017,Tuition Fee,Award Costs,University of Manchester,PIN029941,15200,
DFID,CSC,24/11/2017,Scholar Travel,Award Costs,Royal Veterinary College,PIN029942,6,
DFID,CSC,24/11/2017,Visa Costs,Award Costs,Royal Veterinary College,PIN029942,165,
DFID,CSC,24/11/2017,Scholar Allowances,Award Costs,Royal Veterinary College,PIN029942,400,
DFID,CSC,24/11/2017,Scholar Travel,Award Costs,Royal Veterinary College,PIN029942,991.8,
DFID,CSC,24/11/2017,Scholar Allowances,Award Costs,Royal Veterinary College,PIN029942,450,
DFID,CSC,24/11/2017,Tuition Fee,Award Costs,Royal Veterinary College,PIN029942,44000,Tuition fees for 2 scholars
DFID,CSC,24/11/2017,Award Support Grant,Award Costs,University College London,PIN029943,3000,
DFID,CSC,24/11/2017,Tuition Fee,Award Costs,"St Mary's University, Twickenham, London",PIN029944,13650,
DFID,CSC,24/11/2017,Award Support Grant,Award Costs,LifeLine Network,PIN029945,800,
DFID,CSC,24/11/2017,Award Support Grant,Award Costs,LifeLine Network,PIN029945,2998,
DFID,CSC,24/11/2017,Award Support Grant,Award Costs,commonwealth Telecommunications Organisation,PIN029946,12000,
DFID,CSC,24/11/2017,Award Support Grant,Award Costs,commonwealth Telecommunications Organisation,PIN029946,3200,
DFID,CSC,24/11/2017,Award Support Grant,Award Costs,East London NHS Foundation Trust,PIN029947,800,
DFID,CSC,24/11/2017,Award Support Grant,Award Costs,East London NHS Foundation Trust,PIN029947,2510,
DFID,CSC,24/11/2017,Award Support Grant,Award Costs,London North West Healthcare NHS,PIN029948,15000,
DFID,CSC,24/11/2017,Scholar Allowances,Award Costs,Scholar,PIN029952,762.24,
DFID,CSC,24/11/2017,Award Support Grant,Award Costs,University College London,PIN029954,-2235,
DFE,CSC,24/11/2017,Scholar Stipend,Award Costs,Lond Sch Hygiene & Tropical Me,PIN029955,-2832,
DFE,CSC,24/11/2017,Scholar Stipend,Award Costs,Lond Sch Hygiene & Tropical Me,PIN029956,-2808,
DFID,CSC,27/11/2017,Bank Charges,Award Costs,Mastercard Prepaid Management Services Ltd,PIN029967,79.97,
DFID,CSC,27/11/2017,Scholar Allowances,Award Costs,Scholar,PIN029967,100,
DFID,CSC,27/11/2017,Award Support Costs,Award Costs,Scholar,PIN029967,425,
DFID,CSC,27/11/2017,Visa Costs,Award Costs,Scholar,PIN029967,235,
DFID,CSC,27/11/2017,Scholar Allowances,Award Costs,Scholar,PIN029967,914.64,
DFID,CSC,27/11/2017,Scholar Stipend,Award Costs,Scholar,PIN029967,2019,
DFID,CSC,27/11/2017,Scholar Allowances,Award Costs,Scholar,PIN029967,100,
DFID,CSC,27/11/2017,Scholar Allowances,Award Costs,Scholar,PIN029967,990,
DFID,CSC,27/11/2017,Scholar Stipend,Award Costs,Scholar,PIN029967,2428.75,
DFID,CSC,27/11/2017,Reimbursements,Award Costs,Scholar,PIN029967,85,
DFID,CSC,27/11/2017,Scholar Advances,Award Costs,Scholar,PIN029967,699,
DFID,CSC,28/11/2017,Bank Charges,Award Costs,Mastercard Prepaid Management Services Ltd,PIN029968,41.58,
DFID,CSC,28/11/2017,Scholar Allowances,Award Costs,Scholar,PIN029968,100,
DFID,CSC,28/11/2017,Award Support Costs,Award Costs,Scholar,PIN029968,425,
DFID,CSC,28/11/2017,Visa Costs,Award Costs,Scholar,PIN029968,235,
DFID,CSC,28/11/2017,Scholar Allowances,Award Costs,Scholar,PIN029968,914.64,
DFID,CSC,28/11/2017,Scholar Stipend,Award Costs,Scholar,PIN029968,2483.31,
DFID,CSC,30/11/2017,Bank Charges,Award Costs,Mastercard Prepaid Management Services Ltd,PIN030036,92.07,
DFID,CSC,30/11/2017,Visa Costs,Award Costs,Scholar,PIN030036,70,
DFID,CSC,30/11/2017,Visa Costs,Award Costs,Scholar,PIN030036,70,
DFID,CSC,30/11/2017,Visa Costs,Award Costs,Scholar,PIN030036,70,
DFID,CSC,30/11/2017,Visa Costs,Award Costs,Scholar,PIN030036,70,
DFID,CSC,30/11/2017,Visa Costs,Award Costs,Scholar,PIN030036,70,
DFID,CSC,30/11/2017,Visa Costs,Award Costs,Scholar,PIN030036,70,
DFID,CSC,30/11/2017,Visa Costs,Award Costs,Scholar,PIN030036,91,
DFID,CSC,30/11/2017,Visa Costs,Award Costs,Scholar,PIN030036,91,
DFID,CSC,30/11/2017,Visa Costs,Award Costs,Scholar,PIN030036,91,
DFID,CSC,30/11/2017,Visa Costs,Award Costs,Scholar,PIN030036,91,
DFID,CSC,30/11/2017,Visa Costs,Award Costs,Scholar,PIN030036,91,
DFID,CSC,30/11/2017,Visa Costs,Award Costs,Scholar,PIN030036,91,
DFID,CSC,30/11/2017,Visa Costs,Award Costs,Scholar,PIN030036,75,
DFID,CSC,30/11/2017,Visa Costs,Award Costs,Scholar,PIN030036,75,
DFID,CSC,30/11/2017,Visa Costs,Award Costs,Scholar,PIN030036,75,
DFID,CSC,30/11/2017,Visa Costs,Award Costs,Scholar,PIN030036,75,
DFID,CSC,30/11/2017,Visa Costs,Award Costs,Scholar,PIN030036,75,
DFID,CSC,30/11/2017,Visa Costs,Award Costs,Scholar,PIN030036,75,
DFID,CSC,30/11/2017,Visa Costs,Award Costs,Scholar,PIN030036,75,
DFID,CSC,30/11/2017,Visa Costs,Award Costs,Scholar,PIN030036,75,
DFID,CSC,30/11/2017,Visa Costs,Award Costs,Scholar,PIN030036,75,
DFID,CSC,30/11/2017,Visa Costs,Award Costs,Scholar,PIN030036,75,
DFID,CSC,30/11/2017,Visa Costs,Award Costs,Scholar,PIN030036,75,
DFID,CSC,30/11/2017,Visa Costs,Award Costs,Scholar,PIN030036,106,
DFID,CSC,30/11/2017,Visa Costs,Award Costs,Scholar,PIN030036,106,
DFID,CSC,30/11/2017,Visa Costs,Award Costs,Scholar,PIN030036,106,
DFID,CSC,30/11/2017,Visa Costs,Award Costs,Scholar,PIN030036,75,
DFID,CSC,30/11/2017,Visa Costs,Award Costs,Scholar,PIN030036,75,
DFID,CSC,30/11/2017,Visa Costs,Award Costs,Scholar,PIN030036,75,
DFID,CSC,30/11/2017,Visa Costs,Award Costs,Scholar,PIN030036,52,
DFID,CSC,30/11/2017,Visa Costs,Award Costs,Scholar,PIN030036,52,
DFID,CSC,30/11/2017,Visa Costs,Award Costs,Scholar,PIN030036,52,
DFID,CSC,30/11/2017,Visa Costs,Award Costs,Scholar,PIN030036,52,
DFID,CSC,30/11/2017,Visa Costs,Award Costs,Scholar,PIN030036,52,
DFID,CSC,30/11/2017,Visa Costs,Award Costs,Scholar,PIN030036,52,
DFID,CSC,30/11/2017,Visa Costs,Award Costs,Scholar,PIN030036,52,
DFID,CSC,30/11/2017,Visa Costs,Award Costs,Scholar,PIN030036,52,
DFID,CSC,30/11/2017,Visa Costs,Award Costs,Scholar,PIN030036,52,
DFID,CSC,30/11/2017,Visa Costs,Award Costs,Scholar,PIN030036,52,
DFID,CSC,30/11/2017,Visa Costs,Award Costs,Scholar,PIN030036,52,
DFID,CSC,30/11/2017,Visa Costs,Award Costs,Scholar,PIN030036,109,
DFID,CSC,30/11/2017,Visa Costs,Award Costs,Scholar,PIN030036,109,
DFID,CSC,30/11/2017,Visa Costs,Award Costs,Scholar,PIN030036,109,
DFID,CSC,30/11/2017,Visa Costs,Award Costs,Scholar,PIN030036,109,
DFID,CSC,30/11/2017,Visa Costs,Award Costs,Scholar,PIN030036,109,
DFID,CSC,30/11/2017,Visa Costs,Award Costs,Scholar,PIN030036,109,
DFID,CSC,30/11/2017,Visa Costs,Award Costs,Scholar,PIN030036,109,
DFID,CSC,30/11/2017,Visa Costs,Award Costs,Scholar,PIN030036,109,
DFID,CSC,30/11/2017,Visa Costs,Award Costs,Scholar,PIN030036,109,
DFID,CSC,30/11/2017,Visa Costs,Award Costs,Scholar,PIN030036,109,
DFID,CSC,30/11/2017,Visa Costs,Award Costs,Scholar,PIN030036,109,
DFID,CSC,30/11/2017,Visa Costs,Award Costs,Scholar,PIN030036,109,
DFID,CSC,30/11/2017,Visa Costs,Award Costs,Scholar,PIN030036,109,
DFID,CSC,30/11/2017,Visa Costs,Award Costs,Scholar,PIN030036,109,
DFID,CSC,30/11/2017,Visa Costs,Award Costs,Scholar,PIN030036,75,
DFID,CSC,30/11/2017,Visa Costs,Award Costs,Scholar,PIN030036,36,
DFID,CSC,30/11/2017,Visa Costs,Award Costs,Scholar,PIN030036,36,
DFID,CSC,30/11/2017,Visa Costs,Award Costs,Scholar,PIN030036,113,
DFID,CSC,30/11/2017,Visa Costs,Award Costs,Scholar,PIN030036,113,
DFID,CSC,30/11/2017,Visa Costs,Award Costs,Scholar,PIN030036,113,
DFID,CSC,30/11/2017,Visa Costs,Award Costs,Scholar,PIN030036,113,
DFID,CSC,30/11/2017,Visa Costs,Award Costs,Scholar,PIN030036,113,
DFID,CSC,30/11/2017,Visa Costs,Award Costs,Scholar,PIN030036,113,
DFID,CSC,30/11/2017,Visa Costs,Award Costs,Scholar,PIN030036,113,
DFID,CSC,30/11/2017,Visa Costs,Award Costs,Scholar,PIN030036,113,
DFID,CSC,30/11/2017,Visa Costs,Award Costs,Scholar,PIN030036,75,
DFID,CSC,30/11/2017,Visa Costs,Award Costs,Scholar,PIN030036,75,
DFID,CSC,30/11/2017,Visa Costs,Award Costs,Scholar,PIN030036,75,
DFID,CSC,30/11/2017,Visa Costs,Award Costs,Scholar,PIN030036,75,
DFID,CSC,30/11/2017,Visa Costs,Award Costs,Scholar,PIN030036,17,
DFID,CSC,30/11/2017,Visa Costs,Award Costs,Scholar,PIN030036,17,
DFID,CSC,30/11/2017,Visa Costs,Award Costs,Scholar,PIN030036,17,
DFID,CSC,30/11/2017,Visa Costs,Award Costs,Scholar,PIN030036,17,
DFID,CSC,30/11/2017,Visa Costs,Award Costs,Scholar,PIN030036,17,
DFID,CSC,30/11/2017,Visa Costs,Award Costs,Scholar,PIN030036,17,
DFID,CSC,30/11/2017,Visa Costs,Award Costs,Scholar,PIN030036,17,
DFID,CSC,30/11/2017,Visa Costs,Award Costs,Scholar,PIN030036,17,
DFID,CSC,30/11/2017,Visa Costs,Award Costs,Scholar,PIN030036,17,
DFID,CSC,30/11/2017,Visa Costs,Award Costs,Scholar,PIN030036,17,
DFID,CSC,30/11/2017,Visa Costs,Award Costs,Scholar,PIN030036,17,
DFID,CSC,30/11/2017,Visa Costs,Award Costs,Scholar,PIN030036,17,
DFID,CSC,30/11/2017,Visa Costs,Award Costs,Scholar,PIN030036,17,
DFID,CSC,30/11/2017,Visa Costs,Award Costs,Scholar,PIN030036,17,
DFID,CSC,30/11/2017,Visa Costs,Award Costs,Scholar,PIN030036,17,
DFID,CSC,30/11/2017,Visa Costs,Award Costs,Scholar,PIN030036,65,
DFID,CSC,30/11/2017,Visa Costs,Award Costs,Scholar,PIN030036,50,
DFID,CSC,30/11/2017,Visa Costs,Award Costs,Scholar,PIN030036,50,
DFID,CSC,30/11/2017,Visa Costs,Award Costs,Scholar,PIN030036,50,
DFID,CSC,30/11/2017,Visa Costs,Award Costs,Scholar,PIN030036,50,
DFID,CSC,30/11/2017,Visa Costs,Award Costs,Scholar,PIN030036,50,
DFID,CSC,30/11/2017,Visa Costs,Award Costs,Scholar,PIN030036,75,
DFID,CSC,30/11/2017,Visa Costs,Award Costs,Scholar,PIN030036,75,
DFID,CSC,30/11/2017,Visa Costs,Award Costs,Scholar,PIN030036,75,
DFID,CSC,30/11/2017,Visa Costs,Award Costs,Scholar,PIN030036,75,
DFID,CSC,30/11/2017,Visa Costs,Award Costs,Scholar,PIN030036,75,
DFID,CSC,30/11/2017,Visa Costs,Award Costs,Scholar,PIN030036,75,
DFID,CSC,30/11/2017,Visa Costs,Award Costs,Scholar,PIN030036,75,
DFID,CSC,30/11/2017,Visa Costs,Award Costs,Scholar,PIN030036,75,
DFID,CSC,30/11/2017,Visa Costs,Award Costs,Scholar,PIN030036,64,
DFID,CSC,30/11/2017,Visa Costs,Award Costs,Scholar,PIN030036,64,
DFID,CSC,30/11/2017,Visa Costs,Award Costs,Scholar,PIN030036,64,
DFID,CSC,30/11/2017,Visa Costs,Award Costs,Scholar,PIN030036,64,
DFID,CSC,30/11/2017,Visa Costs,Award Costs,Scholar,PIN030036,64,
DFID,CSC,30/11/2017,Visa Costs,Award Costs,Scholar,PIN030036,64,
DFID,CSC,30/11/2017,Visa Costs,Award Costs,Scholar,PIN030036,64,
DFID,CSC,30/11/2017,Visa Costs,Award Costs,Scholar,PIN030036,64,
DFID,CSC,30/11/2017,Visa Costs,Award Costs,Scholar,PIN030036,64,
DFID,CSC,30/11/2017,Visa Costs,Award Costs,Scholar,PIN030036,64,
DFID,CSC,30/11/2017,Visa Costs,Award Costs,Scholar,PIN030036,64,
DFID,CSC,30/11/2017,Visa Costs,Award Costs,Scholar,PIN030036,64,
DFID,CSC,30/11/2017,Visa Costs,Award Costs,Scholar,PIN030036,64,
DFID,CSC,30/11/2017,Visa Costs,Award Costs,Scholar,PIN030036,64,
DFID,CSC,30/11/2017,Visa Costs,Award Costs,Scholar,PIN030036,64,
DFID,CSC,30/11/2017,Visa Costs,Award Costs,Scholar,PIN030036,64,
DFID,CSC,30/11/2017,Visa Costs,Award Costs,Scholar,PIN030036,64,
DFID,CSC,30/11/2017,Visa Costs,Award Costs,Scholar,PIN030036,64,
DFID,CSC,30/11/2017,Visa Costs,Award Costs,Scholar,PIN030036,64,
DFID,CSC,30/11/2017,Visa Costs,Award Costs,Scholar,PIN030036,64,
DFID,CSC,30/11/2017,Visa Costs,Award Costs,Scholar,PIN030036,64,
DFID,CSC,30/11/2017,Visa Costs,Award Costs,Scholar,PIN030036,64,
DFID,CSC,30/11/2017,Visa Costs,Award Costs,Scholar,PIN030036,64,
DFID,CSC,30/11/2017,Visa Costs,Award Costs,Scholar,PIN030036,64,
DFID,CSC,30/11/2017,Visa Costs,Award Costs,Scholar,PIN030036,64,
DFID,CSC,30/11/2017,Visa Costs,Award Costs,Scholar,PIN030036,64,
DFID,CSC,30/11/2017,Visa Costs,Award Costs,Scholar,PIN030036,64,
DFID,CSC,30/11/2017,Visa Costs,Award Costs,Scholar,PIN030036,64,
DFID,CSC,30/11/2017,Visa Costs,Award Costs,Scholar,PIN030036,64,
DFID,CSC,30/11/2017,Visa Costs,Award Costs,Scholar,PIN030036,64,
DFID,CSC,30/11/2017,Visa Costs,Award Costs,Scholar,PIN030036,75,
DFID,CSC,30/11/2017,Visa Costs,Award Costs,Scholar,PIN030036,75,
DFID,CSC,30/11/2017,Visa Costs,Award Costs,Scholar,PIN030036,109,
DFID,CSC,30/11/2017,Visa Costs,Award Costs,Scholar,PIN030036,75,
DFID,CSC,30/11/2017,Postage & Courier,Award Costs,DHL,NOM000658,521.69,
DFID,CSC,30/11/2017,Postage & Courier,Programme Costs,DHL,NOM000658,65.48,
DFID,CSC,06/11/2017,Scholar Engagement,Programme Costs,NatWest CC,NOM000659,53.46,
DFID,CSC,06/11/2017,Secretariat Service Provision,Admin Costs,NatWest CC,NOM000659,83.88,
DFID,CSC,06/11/2017,Secretariat Travel,Programme Costs,NatWest CC,NOM000659,158.61,
DFID,CSC,06/11/2017,Scholar Engagement,Programme Costs,NatWest CC,NOM000659,170.24,
DFID,CSC,06/11/2017,Visa Costs,Award Costs,NatWest CC,NOM000659,42,
